fUSD/lending_fUSD_20260614
["ID","MTS","AMOUNT","RATE_DAILY","PERIOD"]
[425001468,1781404248000,-500.0,0.00027397,2]
[425001470,1781404248000,-611.15,0.00027397,2]
[425001472,1781404248000,-500.0,0.00027397,2]
[425001413,1781404248000,-1947.26,0.00027397,2]
[425001462,1781404248000,-4826.76,0.00027397,2]
[425001444,1781404248000,-2284.7,0.00027397,2]
[425001460,1781404248000,-500.0,0.00027397,2]
[425001445,1781404248000,-706.49,0.00027397,2]
[425001446,1781404248000,-663.4,0.00027397,2]
[425001426,1781404248000,-500.0,0.00027397,2]
[425001429,1781404248000,-1426.79,0.00027397,2]
[425001419,1781404248000,-500.0,0.00027397,2]
[425001427,1781404248000,-616.91,0.00027397,2]
[425001428,1781404248000,-513.31456432,0.00027397,2]
[425001421,1781404248000,-662.97,0.00027397,2]
[425001430,1781404248000,-737.62,0.00027397,2]
[425001423,1781404248000,-1138.45,0.00027397,2]
[425001422,1781404248000,-1361.38,0.00027397,2]
[425001425,1781404248000,-500.0,0.00027397,2]
[425001424,1781404248000,-500.0,0.00027397,2]
[425001471,1781404248000,-2958.28,0.00027397,2]
[425001420,1781404248000,-500.0,0.00027397,2]
[425001433,1781404248000,-554.85,0.00027397,2]
[425001440,1781404248000,-707.34,0.00027397,2]
[425001435,1781404248000,-3378.01,0.00027397,2]
[425001434,1781404248000,-513.28674431,0.00027397,2]
[425001439,1781404248000,-500.0,0.00027397,2]
[425001437,1781404248000,-500.0,0.00027397,2]
[425001441,1781404248000,-1615.89,0.00027397,2]
[425001432,1781404248000,-543.80130413,0.00027397,2]
[425001436,1781404248000,-500.0,0.00027397,2]
[425001438,1781404248000,-554.54920475,0.00027397,2]
[425001442,1781404248000,-16935.61,0.00027397,2]
[425001443,1781404248000,-609.73,0.00027397,2]
[425001510,1781404249000,-2319.47,0.00027397,2]
[425001502,1781404249000,-500.0,0.00027397,2]
[425001513,1781404249000,-2070.71,0.00027397,2]
[425001511,1781404249000,-500.0,0.00027397,2]
[425001509,1781404249000,-595.13,0.00027397,2]
[425001500,1781404249000,-622.23,0.00027397,2]
[425001504,1781404249000,-500.0,0.00027397,2]
[425001505,1781404249000,-500.0,0.00027397,2]
[425001506,1781404249000,-2497.8,0.00027397,2]
[425001507,1781404249000,-500.0,0.00027397,2]
[425001514,1781404249000,-500.0,0.00027397,2]
[425001508,1781404249000,-500.0,0.00027397,2]
[425001520,1781404249000,-500.0,0.00027397,2]
[425001516,1781404249000,-538.85,0.00027397,2]
[425001518,1781404249000,-1914.9,0.00027397,2]
[425001512,1781404249000,-500.0,0.00027397,2]
[425001517,1781404249000,-564.73151479,0.00027397,2]
[425001519,1781404249000,-417.65733272,0.00027397,2]
[425001521,1781404249000,-500.0,0.00027397,2]
[425001528,1781404249000,-515.38,0.00027397,2]
[425001523,1781404249000,-1378.91,0.00027397,2]
[425001525,1781404249000,-500.0,0.00027397,2]
[425001524,1781404249000,-500.0,0.00027397,2]
[425001529,1781404249000,-652.88,0.00027397,2]
[425001530,1781404249000,-1607.05,0.00027397,2]
[425001515,1781404249000,-1160.62,0.00027397,2]
[425001503,1781404249000,-500.0,0.00027397,2]
[425001474,1781404249000,-500.0,0.00027397,2]
[425001499,1781404249000,-500.0,0.00027397,2]
[425001527,1781404249000,-9965.74,0.00027397,2]
[425001473,1781404249000,-521.34,0.00027397,2]
[425001475,1781404249000,-500.0,0.00027397,2]
[425001476,1781404249000,-1039.85,0.00027397,2]
[425001479,1781404249000,-782.11,0.00027397,2]
[425001480,1781404249000,-500.0,0.00027397,2]
[425001478,1781404249000,-500.0,0.00027397,2]
[425001483,1781404249000,-878.09,0.00027397,2]
[425001477,1781404249000,-911.4,0.00027397,2]
[425001484,1781404249000,-1411.1,0.00027397,2]
[425001482,1781404249000,-2134.57,0.00027397,2]
[425001485,1781404249000,-500.0,0.00027397,2]
[425001486,1781404249000,-1000.0,0.00027397,2]
[425001498,1781404249000,-500.0,0.00027397,2]
[425001488,1781404249000,-1476.28,0.00027397,2]
[425001487,1781404249000,-763.36,0.00027397,2]
[425001489,1781404249000,-664.52,0.00027397,2]
[425001490,1781404249000,-512.4,0.00027397,2]
[425001494,1781404249000,-500.0,0.00027397,2]
[425001492,1781404249000,-2561.72,0.00027397,2]
[425001491,1781404249000,-506.72,0.00027397,2]
[425001495,1781404249000,-1638.43,0.00027397,2]
[425001493,1781404249000,-500.0,0.00027397,2]
[425001496,1781404249000,-705.68,0.00027397,2]
[425001497,1781404249000,-500.0,0.00027397,2]
[425001501,1781404249000,-500.0,0.00027397,2]
[425001532,1781404249000,-2318.79,0.00027397,2]
[425001481,1781404249000,-887.57,0.00027397,2]
[425001522,1781404249000,-500.0,0.00027397,2]
[425001569,1781404249000,-153.240931,0.00027397,2]
[425001561,1781404249000,-787.47,0.00027397,10]
[425001562,1781404249000,-656.22,0.00027397,10]
[425001565,1781404249000,-151.0,0.00027397,2]
[425001568,1781404249000,-151.0,0.00027397,2]
[425001567,1781404249000,-546.85,0.00027397,10]
[425001566,1781404249000,-151.0,0.00027397,2]
[425001563,1781404249000,-151.0,0.00027397,2]
[425001564,1781404249000,-151.0,0.00027397,2]
[425001571,1781404249000,-184.82838929,0.0002748,2]
[425001575,1781404249000,-557.48342183,0.00027649,2]
[425001573,1781404249000,-161.71,0.00027551,30]
[425001560,1781404249000,-451.07,0.00027397,10]
[425001572,1781404249000,-500.0,0.000275,7]
[425001587,1781404249000,-500.0,0.00027671,8]
[425001581,1781404249000,-3000.0,0.00027671,3]
[425001577,1781404249000,-184.82838929,0.00027662,2]
[425001579,1781404249000,-1410.78793696,0.0002767,8]
[425001578,1781404249000,-300.0,0.0002767,10]
[425001580,1781404249000,-1410.78793696,0.0002767,8]
[425001583,1781404249000,-500.0,0.00027671,8]
[425001582,1781404249000,-553.70123704,0.00027671,2]
[425001586,1781404249000,-500.0,0.00027671,8]
[425001584,1781404249000,-500.0,0.00027671,8]
[425001585,1781404249000,-500.0,0.00027671,8]
[425001526,1781404249000,-500.0,0.00027397,2]
[425001576,1781404249000,-202.64182517,0.00027661,2]
[425001558,1781404249000,-151.0,0.00027397,2]
[425001574,1781404249000,-253.37528246,0.00027601,2]
[425001559,1781404249000,-212.035199,0.00027397,2]
[425001531,1781404249000,-707.54,0.00027397,2]
[425001570,1781404249000,-253.37528246,0.00027449,2]
[425001534,1781404249000,-530.42,0.00027397,2]
[425001536,1781404249000,-1656.9,0.00027397,2]
[425001533,1781404249000,-1195.8,0.00027397,2]
[425001535,1781404249000,-917.76,0.00027397,2]
[425001537,1781404249000,-989.08,0.00027397,2]
[425001538,1781404249000,-500.0,0.00027397,2]
[425001540,1781404249000,-3181.29,0.00027397,2]
[425001539,1781404249000,-7152.62,0.00027397,2]
[425001541,1781404249000,-500.0,0.00027397,2]
[425001543,1781404249000,-1186.79,0.00027397,2]
[425001544,1781404249000,-844.36,0.00027397,2]
[425001542,1781404249000,-636.09,0.00027397,2]
[425001555,1781404249000,-151.0,0.00027397,2]
[425001545,1781404249000,-602.04,0.00027397,2]
[425001546,1781404249000,-739.12,0.00027397,2]
[425001553,1781404249000,-151.0,0.00027397,2]
[425001554,1781404249000,-151.0,0.00027397,2]
[425001552,1781404249000,-151.0,0.00027397,2]
[425001548,1781404249000,-151.0,0.00027397,2]
[425001556,1781404249000,-151.0,0.00027397,2]
[425001550,1781404249000,-151.0,0.00027397,2]
[425001557,1781404249000,-151.0,0.00027397,2]
[425001549,1781404249000,-151.0,0.00027397,2]
[425001551,1781404249000,-151.0,0.00027397,2]
[425001547,1781404249000,-1044.89,0.00027397,2]
[425001619,1781404250000,-520.95,0.00027671,8]
[425001627,1781404250000,-2417.43,0.00027671,8]
[425001618,1781404250000,-500.0,0.00027671,8]
[425001626,1781404250000,-839.24,0.00027671,8]
[425001628,1781404250000,-500.0,0.00027671,8]
[425001623,1781404250000,-500.0,0.00027671,8]
[425001621,1781404250000,-2750.12,0.00027671,8]
[425001620,1781404250000,-500.0,0.00027671,8]
[425001622,1781404250000,-500.0,0.00027671,8]
[425001624,1781404250000,-500.0,0.00027671,8]
[425001625,1781404250000,-500.0,0.00027671,8]
[425001630,1781404250000,-500.0,0.00027671,8]
[425001642,1781404250000,-2801.04,0.00027671,8]
[425001641,1781404250000,-500.0,0.00027671,8]
[425001629,1781404250000,-950.62,0.00027671,8]
[425001631,1781404250000,-500.0,0.00027671,8]
[425001632,1781404250000,-500.0,0.00027671,8]
[425001635,1781404250000,-500.0,0.00027671,8]
[425001636,1781404250000,-1860.29,0.00027671,8]
[425001639,1781404250000,-500.0,0.00027671,8]
[425001634,1781404250000,-500.0,0.00027671,2]
[425001633,1781404250000,-500.0,0.00027671,8]
[425001638,1781404250000,-500.0,0.00027671,8]
[425001637,1781404250000,-500.0,0.00027671,8]
[425001617,1781404250000,-1853.85,0.00027671,8]
[425001640,1781404250000,-500.0,0.00027671,8]
[425001611,1781404250000,-1685.85,0.00027671,8]
[425001591,1781404250000,-500.0,0.00027671,8]
[425001612,1781404250000,-500.0,0.00027671,8]
[425001643,1781404250000,-500.0,0.00027671,8]
[425001588,1781404250000,-500.0,0.00027671,8]
[425001590,1781404250000,-500.0,0.00027671,8]
[425001592,1781404250000,-500.0,0.00027671,8]
[425001589,1781404250000,-554.72015347,0.00027671,8]
[425001593,1781404250000,-500.0,0.00027671,8]
[425001597,1781404250000,-500.0,0.00027671,8]
[425001600,1781404250000,-500.0,0.00027671,8]
[425001601,1781404250000,-583.50251746,0.00027671,8]
[425001596,1781404250000,-500.0,0.00027671,8]
[425001603,1781404250000,-500.0,0.00027671,8]
[425001604,1781404250000,-500.0,0.00027671,8]
[425001609,1781404250000,-500.0,0.00027671,8]
[425001594,1781404250000,-567.33286537,0.00027671,8]
[425001598,1781404250000,-500.0,0.00027671,8]
[425001602,1781404250000,-500.0,0.00027671,8]
[425001599,1781404250000,-258.00678492,0.00027671,8]
[425001606,1781404250000,-500.0,0.00027671,8]
[425001616,1781404250000,-859.42,0.00027671,8]
[425001605,1781404250000,-1944.24,0.00027671,8]
[425001607,1781404250000,-500.0,0.00027671,8]
[425001608,1781404250000,-152.82419491,0.00027671,8]
[425001614,1781404250000,-500.0,0.00027671,8]
[425001610,1781404250000,-500.0,0.00027671,8]
[425001613,1781404250000,-556.9,0.00027671,8]
[425001615,1781404250000,-500.0,0.00027671,8]
[425001595,1781404250000,-500.0,0.00027671,8]
[425001649,1781404250000,-1487.94,0.00027671,8]
[425001664,1781404250000,-500.0,0.00027671,15]
[425001650,1781404250000,-500.0,0.00027671,8]
[425001680,1781404250000,-500.0,0.00027671,8]
[425001679,1781404250000,-500.0,0.00027671,8]
[425001678,1781404250000,-500.0,0.00027671,8]
[425001681,1781404250000,-500.0,0.00027671,8]
[425001683,1781404250000,-500.0,0.00027671,8]
[425001684,1781404250000,-500.0,0.00027671,8]
[425001685,1781404250000,-760.48,0.00027671,8]
[425001682,1781404250000,-500.0,0.00027671,8]
[425001687,1781404250000,-500.0,0.00027671,8]
[425001689,1781404250000,-500.0,0.00027671,8]
[425001697,1781404250000,-507.13,0.00027671,8]
[425001688,1781404250000,-500.0,0.00027671,8]
[425001676,1781404250000,-500.0,0.00027671,8]
[425001686,1781404250000,-500.0,0.00027671,8]
[425001692,1781404250000,-500.0,0.00027671,8]
[425001693,1781404250000,-500.0,0.00027671,8]
[425001694,1781404250000,-751.31,0.00027671,8]
[425001691,1781404250000,-500.0,0.00027671,8]
[425001696,1781404250000,-500.0,0.00027671,8]
[425001695,1781404250000,-500.0,0.00027671,8]
[425001698,1781404250000,-500.0,0.00027671,8]
[425001699,1781404250000,-579.74,0.00027671,8]
[425001701,1781404250000,-1004.06,0.00027671,8]
[425001702,1781404250000,-500.0,0.00027671,8]
[425001700,1781404250000,-500.0,0.00027671,8]
[425001703,1781404250000,-517.64,0.00027671,8]
[425001645,1781404250000,-500.0,0.00027671,8]
[425001677,1781404250000,-500.0,0.00027671,8]
[425001690,1781404250000,-500.0,0.00027671,8]
[425001674,1781404250000,-500.0,0.00027671,8]
[425001668,1781404250000,-500.0,0.00027671,8]
[425001648,1781404250000,-1578.72,0.00027671,8]
[425001644,1781404250000,-500.0,0.00027671,8]
[425001651,1781404250000,-500.0,0.00027671,8]
[425001646,1781404250000,-500.0,0.00027671,8]
[425001647,1781404250000,-705.99,0.00027671,8]
[425001662,1781404250000,-2587.93,0.00027671,8]
[425001661,1781404250000,-622.44670139,0.00027671,8]
[425001653,1781404250000,-500.0,0.00027671,8]
[425001660,1781404250000,-500.0,0.00027671,8]
[425001663,1781404250000,-1833.4,0.00027671,8]
[425001654,1781404250000,-2107.81,0.00027671,8]
[425001656,1781404250000,-500.0,0.00027671,8]
[425001652,1781404250000,-500.0,0.00027671,8]
[425001659,1781404250000,-359.01786621,0.00027671,8]
[425001675,1781404250000,-500.0,0.00027671,8]
[425001658,1781404250000,-500.0,0.00027671,8]
[425001673,1781404250000,-500.0,0.00027671,8]
[425001667,1781404250000,-500.0,0.00027671,8]
[425001670,1781404250000,-440.75861649,0.00027671,8]
[425001671,1781404250000,-500.0,0.00027671,8]
[425001666,1781404250000,-775.42,0.00027671,8]
[425001672,1781404250000,-2191.93,0.00027671,8]
[425001669,1781404250000,-500.0,0.00027671,8]
[425001665,1781404250000,-500.0,0.00027671,8]
[425001655,1781404250000,-500.0,0.00027671,8]
[425001657,1781404250000,-500.0,0.00027671,8]
[425001722,1781404251000,-500.0,0.00027671,8]
[425001736,1781404251000,-500.0,0.00027671,8]
[425001720,1781404251000,-500.0,0.00027671,8]
[425001724,1781404251000,-500.0,0.00027671,8]
[425001731,1781404251000,-500.0,0.00027671,8]
[425001723,1781404251000,-500.0,0.00027671,8]
[425001730,1781404251000,-500.0,0.00027671,8]
[425001729,1781404251000,-2246.27,0.00027671,8]
[425001725,1781404251000,-500.0,0.00027671,8]
[425001728,1781404251000,-500.0,0.00027671,8]
[425001727,1781404251000,-500.0,0.00027671,8]
[425001733,1781404251000,-500.0,0.00027671,8]
[425001732,1781404251000,-500.0,0.00027671,8]
[425001726,1781404251000,-500.0,0.00027671,8]
[425001721,1781404251000,-500.0,0.00027671,8]
[425001704,1781404251000,-500.0,0.00027671,8]
[425001716,1781404251000,-500.0,0.00027671,8]
[425001717,1781404251000,-500.0,0.00027671,8]
[425001718,1781404251000,-500.0,0.00027671,8]
[425001712,1781404251000,-500.0,0.00027671,8]
[425001714,1781404251000,-500.0,0.00027671,8]
[425001715,1781404251000,-500.0,0.00027671,8]
[425001713,1781404251000,-676.6,0.00027671,8]
[425001710,1781404251000,-500.0,0.00027671,8]
[425001711,1781404251000,-600.24,0.00027671,8]
[425001707,1781404251000,-500.0,0.00027671,8]
[425001706,1781404251000,-666.87,0.00027671,8]
[425001708,1781404251000,-500.0,0.00027671,8]
[425001705,1781404251000,-896.34,0.00027671,8]
[425001709,1781404251000,-1744.38,0.00027671,8]
[425001719,1781404251000,-1296.78,0.00027671,8]
[425001739,1781404251000,-500.0,0.00027671,8]
[425001747,1781404251000,-500.0,0.00027671,8]
[425001738,1781404251000,-546.58,0.00027671,8]
[425001734,1781404251000,-500.0,0.00027671,8]
[425001768,1781404251000,-489.807298,0.00027671,8]
[425001767,1781404251000,-500.0,0.00027397,2]
[425001766,1781404251000,-288.151855,0.0002,2]
[425001765,1781404251000,-10.192702,0.00027671,8]
[425001763,1781404251000,-500.0,0.00027671,8]
[425001761,1781404251000,-391.8874339,0.00027671,8]
[425001762,1781404251000,-500.0,0.00027671,8]
[425001760,1781404251000,-108.1125661,0.00027671,8]
[425001759,1781404251000,-500.0,0.00027671,8]
[425001758,1781404251000,-500.0,0.00027671,8]
[425001755,1781404251000,-500.0,0.00027671,8]
[425001754,1781404251000,-1120.41,0.00027671,8]
[425001752,1781404251000,-500.0,0.00027671,8]
[425001751,1781404251000,-500.0,0.00027671,8]
[425001764,1781404251000,-967.92,0.00027671,8]
[425001749,1781404251000,-500.0,0.00027671,8]
[425001753,1781404251000,-500.0,0.00027671,8]
[425001744,1781404251000,-549.5,0.00027671,8]
[425001735,1781404251000,-500.0,0.00027671,8]
[425001737,1781404251000,-500.0,0.00027671,8]
[425001741,1781404251000,-500.0,0.00027671,8]
[425001742,1781404251000,-500.0,0.00027671,8]
[425001743,1781404251000,-500.0,0.00027671,8]
[425001746,1781404251000,-500.0,0.00027671,8]
[425001756,1781404251000,-500.0,0.00027671,8]
[425001757,1781404251000,-500.0,0.00027671,8]
[425001745,1781404251000,-630.95,0.00027671,8]
[425001750,1781404251000,-500.0,0.00027671,8]
[425001740,1781404251000,-555.1,0.00027671,8]
[425001748,1781404251000,-500.0,0.00027671,8]
[425001808,1781404252000,-1499.5,0.00027671,8]
[425001809,1781404252000,-2446.57,0.00027671,8]
[425001799,1781404252000,-500.0,0.00027671,8]
[425001796,1781404252000,-500.0,0.00027671,8]
[425001793,1781404252000,-500.0,0.00027671,8]
[425001792,1781404252000,-500.0,0.00027671,8]
[425001804,1781404252000,-500.0,0.00027671,8]
[425001789,1781404252000,-575.28,0.00027671,8]
[425001794,1781404252000,-2235.36,0.00027671,8]
[425001803,1781404252000,-2992.92,0.00027671,8]
[425001810,1781404252000,-500.0,0.00027671,8]
[425001802,1781404252000,-643.05,0.00027671,8]
[425001801,1781404252000,-500.0,0.00027671,8]
[425001806,1781404252000,-500.0,0.00027671,8]
[425001807,1781404252000,-500.0,0.00027671,8]
[425001811,1781404252000,-604.69,0.00027671,8]
[425001812,1781404252000,-500.0,0.00027671,8]
[425001813,1781404252000,-500.0,0.00027671,8]
[425001819,1781404252000,-500.0,0.00027671,8]
[425001797,1781404252000,-500.0,0.00027671,8]
[425001805,1781404252000,-500.0,0.00027671,8]
[425001795,1781404252000,-500.0,0.00027671,8]
[425001776,1781404252000,-500.0,0.00027671,8]
[425001790,1781404252000,-677.98,0.00027671,8]
[425001771,1781404252000,-500.0,0.00027671,8]
[425001769,1781404252000,-500.0,0.00027671,8]
[425001774,1781404252000,-592.57796727,0.00027671,8]
[425001772,1781404252000,-500.0,0.00027671,8]
[425001775,1781404252000,-1138.66,0.00027671,8]
[425001770,1781404252000,-500.0,0.00027671,8]
[425001773,1781404252000,-500.0,0.00027671,8]
[425001814,1781404252000,-500.0,0.00027671,8]
[425001779,1781404252000,-500.0,0.00027671,8]
[425001783,1781404252000,-500.0,0.00027671,8]
[425001778,1781404252000,-500.0,0.00027671,8]
[425001782,1781404252000,-512.44,0.00027671,8]
[425001781,1781404252000,-500.0,0.00027671,8]
[425001780,1781404252000,-500.0,0.00027671,8]
[425001777,1781404252000,-500.0,0.00027671,8]
[425001784,1781404252000,-1142.11,0.00027671,8]
[425001785,1781404252000,-500.0,0.00027671,8]
[425001786,1781404252000,-3786.77,0.00027671,8]
[425001787,1781404252000,-500.0,0.00027671,8]
[425001798,1781404252000,-569.21,0.00027671,8]
[425001788,1781404252000,-726.02,0.00027671,8]
[425001791,1781404252000,-500.0,0.00027671,8]
[425001818,1781404252000,-500.0,0.00027671,8]
[425001800,1781404252000,-500.0,0.00027671,8]
[425001815,1781404252000,-500.0,0.00027671,8]
[425001844,1781404252000,-500.0,0.00027671,8]
[425001849,1781404252000,-500.0,0.00027671,8]
[425001848,1781404252000,-500.0,0.00027671,8]
[425001846,1781404252000,-952.01,0.00027671,8]
[425001847,1781404252000,-1477.45,0.00027671,8]
[425001845,1781404252000,-503.23,0.00027671,8]
[425001850,1781404252000,-500.0,0.00027671,8]
[425001851,1781404252000,-1609.14,0.00027671,8]
[425001852,1781404252000,-1005.68,0.00027671,8]
[425001859,1781404252000,-1457.43,0.00027671,8]
[425001856,1781404252000,-500.0,0.00027671,8]
[425001857,1781404252000,-515.38,0.00027671,8]
[425001855,1781404252000,-500.0,0.00027671,8]
[425001853,1781404252000,-500.0,0.00027671,8]
[425001854,1781404252000,-500.0,0.00027671,8]
[425001861,1781404252000,-500.0,0.00027671,8]
[425001860,1781404252000,-500.0,0.00027671,8]
[425001863,1781404252000,-503.68,0.00027671,8]
[425001862,1781404252000,-500.0,0.00027671,8]
[425001816,1781404252000,-500.0,0.00027671,8]
[425001864,1781404252000,-500.0,0.00027671,8]
[425001842,1781404252000,-644.17704938,0.00027671,8]
[425001843,1781404252000,-500.0,0.00027671,8]
[425001858,1781404252000,-500.0,0.00027671,8]
[425001839,1781404252000,-837.81,0.00027671,8]
[425001817,1781404252000,-500.0,0.00027671,8]
[425001821,1781404252000,-595.64,0.00027671,8]
[425001841,1781404252000,-195.45334944,0.00027671,8]
[425001820,1781404252000,-1260.48,0.00027671,8]
[425001822,1781404252000,-500.0,0.00027671,8]
[425001823,1781404252000,-602.93,0.00027671,8]
[425001824,1781404252000,-500.0,0.00027671,8]
[425001828,1781404252000,-500.0,0.00027671,8]
[425001826,1781404252000,-1728.75,0.00027671,8]
[425001829,1781404252000,-500.0,0.00027671,8]
[425001827,1781404252000,-2096.52,0.00027671,8]
[425001825,1781404252000,-500.0,0.00027671,8]
[425001830,1781404252000,-834.53,0.00027671,8]
[425001831,1781404252000,-500.0,0.00027671,8]
[425001832,1781404252000,-618.79,0.00027671,8]
[425001835,1781404252000,-1183.4,0.00027671,8]
[425001833,1781404252000,-500.0,0.00027671,8]
[425001834,1781404252000,-500.0,0.00027671,8]
[425001836,1781404252000,-2944.04,0.00027671,8]
[425001840,1781404252000,-1177.55,0.00027671,8]
[425001837,1781404252000,-500.0,0.00027671,8]
[425001838,1781404252000,-514.55,0.00027671,8]
[425001891,1781404253000,-500.0,0.00027671,8]
[425001906,1781404253000,-1091.88,0.00027671,8]
[425001904,1781404253000,-500.0,0.00027671,8]
[425001902,1781404253000,-500.0,0.00027671,8]
[425001898,1781404253000,-500.0,0.00027671,8]
[425001894,1781404253000,-500.0,0.00027671,8]
[425001897,1781404253000,-932.06,0.00027671,8]
[425001895,1781404253000,-584.76457562,0.00027671,8]
[425001890,1781404253000,-951.26,0.00027671,8]
[425001907,1781404253000,-500.0,0.00027671,8]
[425001896,1781404253000,-500.0,0.00027671,8]
[425001905,1781404253000,-500.0,0.00027671,8]
[425001914,1781404253000,-521.70920041,0.00027671,8]
[425001911,1781404253000,-1598.74,0.00027671,8]
[425001909,1781404253000,-646.15384325,0.00027671,8]
[425001910,1781404253000,-747.34,0.00027671,8]
[425001903,1781404253000,-500.0,0.00027671,8]
[425001908,1781404253000,-500.0,0.00027671,8]
[425001913,1781404253000,-500.0,0.00027671,8]
[425001915,1781404253000,-390.65803957,0.00027671,8]
[425001916,1781404253000,-823.97,0.00027671,8]
[425001917,1781404253000,-500.0,0.00027671,8]
[425001918,1781404253000,-1235.31,0.00027671,8]
[425001923,1781404253000,-500.0,0.00027671,8]
[425001888,1781404253000,-500.0,0.00027671,8]
[425001922,1781404253000,-500.0,0.00027671,8]
[425001912,1781404253000,-422.15587461,0.00027671,8]
[425001892,1781404253000,-1039.37,0.00027671,8]
[425001869,1781404253000,-500.0,0.00027671,8]
[425001900,1781404253000,-500.0,0.00027671,8]
[425001920,1781404253000,-3299.03,0.00027671,8]
[425001873,1781404253000,-1399.47,0.00027671,8]
[425001874,1781404253000,-892.55,0.00027671,8]
[425001867,1781404253000,-500.0,0.00027671,8]
[425001865,1781404253000,-524.69,0.00027671,8]
[425001868,1781404253000,-500.0,0.00027671,8]
[425001871,1781404253000,-500.0,0.00027671,8]
[425001870,1781404253000,-500.0,0.00027671,8]
[425001872,1781404253000,-500.0,0.00027671,8]
[425001866,1781404253000,-500.0,0.00027671,8]
[425001875,1781404253000,-500.0,0.00027671,8]
[425001879,1781404253000,-500.0,0.00027671,8]
[425001893,1781404253000,-500.0,0.00027671,8]
[425001886,1781404253000,-500.0,0.00027671,8]
[425001887,1781404253000,-500.0,0.00027671,8]
[425001878,1781404253000,-500.0,0.00027671,8]
[425001880,1781404253000,-500.0,0.00027671,8]
[425001876,1781404253000,-1191.6,0.00027671,8]
[425001877,1781404253000,-1045.89,0.00027671,8]
[425001882,1781404253000,-1007.37,0.00027671,8]
[425001883,1781404253000,-500.0,0.00027671,8]
[425001884,1781404253000,-500.0,0.00027671,8]
[425001885,1781404253000,-648.89,0.00027671,8]
[425001889,1781404253000,-500.0,0.00027671,8]
[425001899,1781404253000,-925.57,0.00027671,8]
[425001901,1781404253000,-513.32,0.00027671,8]
[425001881,1781404253000,-438.35109843,0.00027671,8]
[425001921,1781404253000,-500.0,0.00027671,8]
[425001963,1781404253000,-500.0,0.00027671,8]
[425001924,1781404253000,-559.06,0.00027671,8]
[425001958,1781404253000,-547.80028168,0.00027671,8]
[425001957,1781404253000,-2148.5,0.00027671,8]
[425001955,1781404253000,-500.0,0.00027671,8]
[425001959,1781404253000,-500.0,0.00027671,8]
[425001960,1781404253000,-500.0,0.00027671,8]
[425001962,1781404253000,-500.0,0.00027671,8]
[425001961,1781404253000,-1100.35,0.00027671,8]
[425001964,1781404253000,-500.0,0.00027671,8]
[425001966,1781404253000,-1250.46,0.00027671,8]
[425001965,1781404253000,-500.0,0.00027671,8]
[425001969,1781404253000,-500.0,0.00027671,8]
[425001967,1781404253000,-500.0,0.00027671,2]
[425001956,1781404253000,-500.0,0.00027671,8]
[425001968,1781404253000,-500.0,0.00027671,8]